Cogmind - Beta 11.1 @@@ ROGUE MODE // 2022.06.07 @ 15:26:34 Player: Cookedpoo Result: Self-destructed Performance ------------- Evolutions (3) 1500 Regions Visited (10) 2000 Robots Destroyed (129) 645 Value Destroyed (3653) 3653 Prototype IDs (33) 660 Alien Tech Used (0) 0 Bonus (1169) 1169 TOTAL SCORE: 9627 Bonus ------- High Alert Combat Kills 134 Follower Combat Kills 35 Entered Garrisons 200 Used RIF Installer 500 Aligned with FarCom 300 Cogmind --------- Core Integrity 535/700 Matter 300/300 Energy 236/310 System Corruption 7% Temperature Cool (0) Movement Rolling (115) Ox2 Location -7/Lower Caves Parts ------- > --- POWER (1) -------- Cooled Deuterium Engine > --- PROPULSION (2) --- Wheel Armored Wheel > --- UTILITY (8) ------ High-capacity Storage Unit Advanced Weight Redist. System Advanced Visual Processing Unit Improved Targeting Computer Improved Targeting Computer Improved Targeting Computer Advanced Targeting Computer Improved Light Armor Plating > --- WEAPON (2) ------- Coil Gun Coil Gun > --- INVENTORY (20) --- Cooling System Shock Absorption System Army-in-a-Box (30/30) Field Laser Ion Cannon Cooled Particle Cannon Cooled Particle Cannon Precision Assault Rifle Advanced Assault Cannon Advanced Assault Cannon Proton Missile Launcher Proton Missile Launcher Remote Datajack Katana Peak State ------------ > --- POWER ------------ Cooled Deuterium Engine > --- PROPULSION ------- Compact Wheel Armored Wheel > --- UTILITY ---------- High-capacity Storage Unit Advanced Weight Redist. System Advanced Visual Processing Unit Improved Targeting Computer Improved Targeting Computer Improved Targeting Computer Advanced Targeting Computer Energy Filter > --- WEAPON ----------- Coil Gun Coil Gun > --- INVENTORY -------- Armored Wheel Cooling System Improved Light Armor Plating Improved Light Armor Plating Shock Absorption System Army-in-a-Box Precision Shock Rifle Field Laser Ion Cannon Shotgun Shotgun Precision Assault Rifle Rocket Launcher Mini Grenade Launcher Katana [Rating: 47] Favorites ----------- Power Cooled Ion Engine Engine Cooled Ion Engine Power Core Light Nuclear Core Propulsion Armored Wheel Treads Improved Treads Leg Aluminum Leg Wheel Armored Wheel Utility Improved Targeting Computer Device Advanced Weight Redist. System Storage High-capacity Storage Unit Processor Improved Targeting Computer Protection Propulsion Shielding Weapon Shotgun Energy Gun Medium Laser Energy Cannon Cooled Particle Cannon Ballistic Gun Shotgun Launcher Mini Grenade Launcher Slashing Weapon Katana Build | -11 -10 -10 -9 -9 -9 -8 -8 -8 -7 -7 ------- Run | Scr Mat Min Mat Min Exi Min Mat Gar Fac Low Slots Evolved 6 | . . . 2 . . . 2 . 2 . Power . | . . . . . . . . . . . Propulsion . | . . . . . . . . . . . Utility 6 | . . . 2 . . . 2 . 2 . Weapon . | . . . . . . . . . . . Parts Attached 130 | 6 27 6 25 6 . 2 7 12 39 . Power 13 | 1 2 2 4 . . . . 2 2 . Engine 12 | 1 2 2 4 . . . . 1 2 . Core 1 | . . . . . . . . 1 . . Reactor . | . . . . . . . . . . . Propulsion 28 | 2 10 . 3 4 . . 3 2 4 . Treads 2 | . . . . . . . 2 . . . Leg 2 | . 2 . . . . . . . . . Wheel 24 | 2 8 . 3 4 . . 1 2 4 . Hover . | . . . . . . . . . . . Flight . | . . . . . . . . . . . Utility 25 | 1 6 1 8 . . . 3 . 6 . Device 4 | . . . 1 . . . 1 . 2 . Storage 2 | 1 1 . . . . . . . . . Processor 8 | . . . 4 . . . 2 . 2 . Hackware . | . . . . . . . . . . . Protection 11 | . 5 1 3 . . . . . 2 . Artifact . | . . . . . . . . . . . Weapon 64 | 2 9 3 10 2 . 2 1 8 27 . Energy Gun 13 | 2 6 2 2 . . . . . 1 . Energy Cannon 2 | . . . . . . . . . 2 . Ballistic Gun 29 | . . . 6 1 . 1 1 5 15 . Ballistic Cannon . | . . . . . . . . . . . Launcher 16 | . 3 1 2 1 . 1 . 3 5 . Special Weapon . | . . . . . . . . . . . Impact Weapon . | . . . . . . . . . . . Slashing Weapon 4 | . . . . . . . . . 4 . Piercing Weapon . | . . . . . . . . . . . Special Melee Weapon . | . . . . . . . . . . . Unidentified Prototypes 4 | . . . . . . . . . 4 . Parts Lost 16 | . . 2 4 . . . 2 3 5 . Power 5 | . . 1 2 . . . . 1 1 . Propulsion 6 | . . . 1 . . . 2 1 2 . Utility 2 | . . . 1 . . . . . 1 . Weapon 3 | . . 1 . . . . . 1 1 . Highest Loss Streak 3 | . . 1 2 . . . 1 2 3 . To Critical Strikes . | . . . . . . . . . . . Average Slot Usage (%) 98 | . 95 99 97 100 100 100 96 98 98 100 Engine 9 | . 13 13 10 11 11 11 9 4 6 7 Leg 1 | . 11 . . . . . . . . . Wheel 17 | . 16 28 20 22 22 22 14 9 14 15 Device 4 | . . . 5 . . . 5 9 9 7 Storage 10 | . 14 14 11 11 11 11 9 9 7 7 Processor 21 | . . . 15 22 22 22 35 36 37 38 Protection 7 | . 10 14 11 11 11 11 3 . 4 7 Energy Gun 8 | . 27 27 8 . . . . . . . Ballistic Gun 11 | . . . 13 21 22 22 18 15 13 15 Naked Turns . | . . . . . . . . . . . Heaviest Build 68 | 12 48 48 58 58 57 57 57 55 68 64 Greatest Support 37 | 26 26 24 26 26 20 20 35 37 37 31 Greatest Overweight (x) 5 | 1 3 1 3 2 2 2 5 2 2 2 Average Overweight (x) 1 | . . 1 1 2 2 2 1 1 1 2 Largest Inventory Capacity 20 | 8 20 20 20 20 20 20 20 20 20 20 Average Capacity 19 | 7 14 20 20 20 20 20 20 20 20 20 Most Carried 20 | 4 12 20 20 20 20 20 20 20 20 19 Average Carried 17 | 2 7 16 19 20 19 20 19 19 19 19 Final Capacity 20 | 8 20 20 20 20 20 20 20 20 20 20 Final Carried 20 | 4 12 20 20 20 20 20 20 18 19 19 Class Distribution -------------------- 100% | Mutant Dominant Class ---------------- Mutant | -10/Materials Mutant | -10/Mines Mutant | -9/Materials Mutant | -9/Mines Mutant | -9/Exiles Mutant | -8/Mines Mutant | -8/Materials Mutant | -8/Garrison Mutant | -7/Factory Mutant | -7/Lower Caves Resources | -11 -10 -10 -9 -9 -9 -8 -8 -8 -7 -7 ----------- Run | Scr Mat Min Mat Min Exi Min Mat Gar Fac Low Matter Collected 2905 | 226 207 207 440 124 . 19 394 241 1031 16 Remotely . | . . . . . . . . . . . Salvage Created 4215 | . 285 203 827 228 . 19 746 262 1600 45 Parts 237 | . 21 6 44 20 . 5 32 19 86 4 Haulers Intercepted 8 | . 2 . 4 . . . . . 2 . Recyclers Shooed 7 | . 1 . 1 . . . 2 . 3 . Parts Field Recycled . | . . . . . . . . . . . Retrieved Matter . | . . . . . . . . . . . Parts Self-Destructed 2 | . . . . . . . . . . 2 Prevented . | . . . . . . . . . . . Kills | -11 -10 -10 -9 -9 -9 -8 -8 -8 -7 -7 ------- Run | Scr Mat Min Mat Min Exi Min Mat Gar Fac Low Combat Hostiles Destroyed 101 | . 11 11 12 7 . 3 13 12 30 2 Guns 68 | . 4 10 11 5 . 1 13 7 15 2 AOE 32 | . 7 1 1 2 . 2 . 5 14 . Classes Destroyed 18 | . 6 1 3 1 . . 3 2 2 . Worker 9 | . . . 1 1 . . . . 7 . Builder 2 | . 1 . . . . . . . 1 . Tunneler 3 | . . . . 1 . . . . 2 . Hauler 8 | . 2 . 4 . . . . . 2 . Recycler 7 | . . . 1 . . . 3 . 3 . Operator 2 | . 1 . 1 . . . . . . . Watcher 3 | . 1 . 1 . . . . . 1 . Swarmer 30 | . 9 3 . 3 . 3 . 4 6 2 Cutter 2 | . . . . . . . . 2 . . Grunt 37 | . 2 2 9 2 . . 8 4 10 . Brawler 2 | . . . . . . . 2 . . . Duelist 2 | . . . . . . . 2 . . . Protector 2 | . . . . . . . . . 2 . Sentry 6 | . . . 3 2 . . . . 1 . Specialist 4 | . . . . . . . . 1 3 . Hunter 5 | . . . . . . . 1 1 3 . Programmer 5 | . . . . . . . . . 5 . Assembled 6 | . . 6 . . . . . . . . Best Kill Streak 20 | . 7 3 5 4 . 3 6 4 20 2 Combat Bots Only 10 | . 6 3 3 4 . 3 4 4 10 2 Max Kills in Single Turn 6 | . 2 1 2 2 . 2 1 4 6 2 Gunslinging 1 | . . . . . . . . . 1 1 Exploded 4 | . 2 1 1 2 . 2 . 4 4 . Melee . | . . . . . . . . . . . Uniques/NPCs Destroyed . | . . . . . . . . . . . Combat | -11 -10 -10 -9 -9 -9 -8 -8 -8 -7 -7 -------- Run | Scr Mat Min Mat Min Exi Min Mat Gar Fac Low Damage Taken 3392 | . 149 436 686 95 . 12 410 550 1012 42 Core 611 | . 16 113 155 37 . . 64 61 152 13 Absorbed by Shields . | . . . . . . . . . . . Redirected to Shielding 53 | . . 33 20 . . . . . . . Regen/Repaired (Parts) 222 | . 38 . 22 . . . . . 162 . Core Remaining (%) 69 | 100 . 48 . . . 52 . 77 . . Volleys Fired 250 | . 27 26 62 11 . 2 36 24 60 2 Largest 2 | . 2 2 2 2 . 2 2 2 2 2 Hottest 100 | . 100 100 100 46 . 46 48 48 78 60 Shots Fired 471 | . 49 51 123 21 . 3 71 42 107 4 Gun 430 | . 44 50 121 20 . 2 71 36 82 4 Cannon 4 | . . . . . . . . . 4 . Launcher 37 | . 5 1 2 1 . 1 . 6 21 . Special . | . . . . . . . . . . . Kinetic 308 | . . . 93 20 . 2 71 36 82 4 Thermal 126 | . 44 50 28 . . . . . 4 . Explosive 27 | . 5 1 2 1 . 1 . 6 11 . Electromagnetic 10 | . . . . . . . . . 10 . Robot Hit Streak 25 | . 6 10 22 14 . 3 25 17 16 7 Robot Miss Streak 5 | . 5 4 5 2 . . 2 3 3 . Penetration Max 1 | . . . . . . . . . 1 . Secondary Targets 4 | . . . 1 . . . . 1 1 1 Max Gunslinging Chain 1 | . . . 1 . . . . 1 1 1 Shots Hit Robots 353 | . 31 31 94 15 . 1 67 35 75 4 Core Hits 253 | . 22 17 45 16 . 3 41 26 81 2 Critical Kills 2 | . . . . . . . 2 . . . Critical Parts Destroyed 3 | . . . . . . . . . 3 . Critical Strikes 16 | . 6 2 3 . . . 2 . 3 . Burn 11 | . 6 2 3 . . . . . . . Destroy 5 | . . . . . . . 2 . 3 . Melee Attacks 8 | . . . . . . . . . 8 . Impact . | . . . . . . . . . . . Slashing 8 | . . . . . . . . . 8 . Piercing . | . . . . . . . . . . . Sneak Attacks . | . . . . . . . . . . . Combat Hostiles . | . . . . . . . . . . . Follow-up Attacks . | . . . . . . . . . . . Damage Inflicted 9516 | . 829 493 1293 394 . 163 1257 1057 3937 93 Guns 5450 | . 368 382 1077 252 . 22 1257 608 1391 93 Cannons 83 | . . . . . . . . . 83 . Explosions 3983 | . 461 111 216 142 . 141 . 449 2463 . Melee . | . . . . . . . . . . . Ramming . | . . . . . . . . . . . Kinetic 4433 | . . . 810 252 . 22 1257 608 1391 93 Thermal 1400 | . 368 382 267 . . . . . 383 . Explosive 3153 | . 461 111 216 142 . 141 . 449 1633 . Electromagnetic 530 | . . . . . . . . . 530 . Impact . | . . . . . . . . . . . Slashing . | . . . . . . . . . . . Piercing . | . . . . . . . . . . . Highest Corruption 7 | . . . 2 2 2 2 . . 7 7 Average Corruption 3 | . . . 2 2 2 2 . . 5 7 Corruption Purged . | . . . . . . . . . . . Corruption Blocked . | . . . . . . . . . . . Effects 53 | . . . 7 9 2 1 . . 33 1 Message Errors 13 | . . . 1 4 . 1 . . 7 . Matter Fused 15 | . . . 2 3 . . . . 10 . Heat Flow Errors 7 | . . . 1 1 . . . . 5 . Energy Discharges 6 | . . . 1 . . . . . 4 1 Data Loss (minor) 4 | . . . . . 1 . . . 3 . Data Loss (major) 4 | . . . 1 1 1 . . . 1 . Misfires 3 | . . . 1 . . . . . 2 . Alerts 1 | . . . . . . . . . 1 . Overload Shots . | . . . . . . . . . . . Overflow Damage 103 | . 17 . . 16 . . . 8 62 . Projectiles 5 | . . . . . . . . . 5 . Explosions 98 | . 17 . . 16 . . . 8 57 . Melee . | . . . . . . . . . . . Knockbacks . | . . . . . . . . . . . Impact . | . . . . . . . . . . . Kinetic . | . . . . . . . . . . . Secondary . | . . . . . . . . . . . Self-Inflicted Damage 84 | . 20 35 . . . . . . 29 . Shots 4 | . 1 1 . . . . . . 2 . Rammed . | . . . . . . . . . . . Targets Rammed . | . . . . . . . . . . . Kicked . | . . . . . . . . . . . Crushed . | . . . . . . . . . . . Highest Temperature 421 | . 200 261 273 225 . . . . 421 . Average Temperature 90 | . 75 89 148 105 . . . . 101 . Received Heat Transfer 872 | . 30 47 339 42 . . 189 45 180 . Effects 2 | . . . . . . . . . 2 . Energy Bleed 1 | . . . . . . . . . 1 . Interference 1 | . . . . . . . . . 1 . Siege Activations . | . . . . . . . . . . . Robots Corrupted 1 | . . . . . . . . . 1 . Combat Hostiles 1 | . . . . . . . . . 1 . Parts Fried 3 | . . . . . . . . . 3 . Impact Corruptions . | . . . . . . . . . . . Robots Melted 1 | . 1 . . . . . . . . . Combat Hostiles . | . . . . . . . . . . . Parts Melted 10 | . 6 1 3 . . . . . . . Heat Transferred 4185 | . 1517 1258 999 . . . . . 411 . Parts Sabotaged . | . . . . . . . . . . . Parts Stolen . | . . . . . . . . . . . Parts Stripped . | . . . . . . . . . . . Power Chain Reactions 1 | . . . . . . . . . 1 . Missiles Intercepted . | . . . . . . . . . . . Alert | -11 -10 -10 -9 -9 -9 -8 -8 -8 -7 -7 ------- Run | Scr Mat Min Mat Min Exi Min Mat Gar Fac Low Peak Influence 695 | . 324 243 291 288 . 112 241 520 695 . Initial 273 | . . 73 12 74 . . 43 156 273 . Average 200 | . 159 120 130 143 . 105 119 322 313 . Maximum Alert Level 2 | . 1 1 1 1 . . 1 2 2 . Low Security (%) 62 | 100 75 63 94 81 . 100 86 27 29 . Level 1 28 | . 24 36 5 18 . . 13 45 44 . Level 2 9 | . . . . . . . . 27 25 . Level 3 . | . . . . . . . . . . . Level 4 . | . . . . . . . . . . . Level 5 . | . . . . . . . . . . . High Security . | . . . . . . . . . . . Max Security . | . . . . . . . . . . . Squads Dispatched 14 | . 2 . 1 . . . 1 . 10 . Investigation 1 | . 1 . . . . . . . . . Extermination 4 | . . . . . . . . . 4 . Reinforcement 8 | . 1 . 1 . . . . . 6 . Assault . | . . . . . . . . . . . Garrison 1 | . . . . . . . 1 . . . Intercept . | . . . . . . . . . . . Searches Triggered . | . . . . . . . . . . . Construction Impeded 1 | . . . . . . . . . 1 . Haulers Reinforced 3 | . . . . . . . . . 3 . Active Scanning Responses . | . . . . . . . . . . . Cargo Convoy Interrupts 1 | . . . . . . . . . 1 . Stealth | -11 -10 -10 -9 -9 -9 -8 -8 -8 -7 -7 --------- Run | Scr Mat Min Mat Min Exi Min Mat Gar Fac Low Distress Signals 14 | . 1 . 3 . . . 4 . 6 . Communications Jammed . | . . . . . . . . . . . Distress Signals . | . . . . . . . . . . . Times Spotted 156 | . 20 16 24 11 . 3 21 9 48 4 Peak Tracking Total 8 | . 5 8 5 4 . 3 7 3 8 4 Tactical Retreats 12 | . 1 . 2 1 . . 3 . 4 1 Traps | -11 -10 -10 -9 -9 -9 -8 -8 -8 -7 -7 ------- Run | Scr Mat Min Mat Min Exi Min Mat Gar Fac Low Traps Triggered 17 | . 7 . 1 . . . . 9 . . Indirectly . | . . . . . . . . . . . Trap Hack Attempts . | . . . . . . . . . . . Triggered . | . . . . . . . . . . . Disarmed . | . . . . . . . . . . . Reprogrammed . | . . . . . . . . . . . Reused . | . . . . . . . . . . . Traps Extracted . | . . . . . . . . . . . Installed . | . . . . . . . . . . . Triggered 1 | . . . . . . . . . 1 . Most Traps Carried 5 | . . 5 5 5 5 . . . . . Machines | -11 -10 -10 -9 -9 -9 -8 -8 -8 -7 -7 ---------- Run | Scr Mat Min Mat Min Exi Min Mat Gar Fac Low Machines Disabled 9 | . 1 1 1 . . 1 . 2 3 . Max in Single Turn 2 | . 1 1 1 . . 1 . 1 2 . Machines Sabotaged . | . . . . . . . . . . . Garrisons Compromised . | . . . . . . . . . . . Overloaded Fab Kills . | . . . . . . . . . . . Hacking | -11 -10 -10 -9 -9 -9 -8 -8 -8 -7 -7 --------- Run | Scr Mat Min Mat Min Exi Min Mat Gar Fac Low Machines Accessed 29 | . 10 . 7 . 2 1 4 . 5 . Terminals 17 | . 7 . 5 . . 1 2 . 2 . Fabricators 2 | . . . . . . . . . 2 . Repair Stations 3 | . 1 . 1 . . . . . 1 . Recycling Units 3 | . 2 . 1 . . . . . . . Scanalyzers 1 | . . . . . . . 1 . . . Garrison Access 1 | . . . . . . . 1 . . . Total Hacks 77 | . 31 . 18 . 2 2 10 . 14 . Successful 46 | . 18 . 9 . 2 2 4 . 11 . Failed 31 | . 13 . 9 . . . 6 . 3 . Catastrophic 4 | . . . 2 . . . 2 . . . Database Lockouts . | . . . . . . . . . . . Manual 23 | . 11 . 6 . 1 . 3 . 2 . Terminals 48 | . 25 . 12 . . 2 6 . 3 . Fabricators 2 | . . . . . . . . . 2 . Repair Stations 16 | . 2 . 5 . . . . . 9 . Recycling Units 5 | . 4 . 1 . . . . . . . Scanalyzers 2 | . . . . . . . 2 . . . Garrison Access 2 | . . . . . . . 2 . . . Terminal Hacks 24 | . 14 . 4 . 2 2 1 . 1 . Record 1 | . . . . . 1 . . . . . Robot Analysis 7 | . 3 . 3 . . . 1 . . . Prototype ID Bank 6 | . 6 . . . . . . . . . Open DSF 1 | . . . . . . . . . 1 . Dispatch Records 1 | . . . . . . 1 . . . . Security Status 1 | . 1 . . . . . . . . . Patrol Status 1 | . . . . . . 1 . . . . Recall Reinforcements 1 | . 1 . . . . . . . . . Hauler Manifests 2 | . 2 . . . . . . . . . Zone Layout 2 | . 1 . 1 . . . . . . . EX-Prototype ID Bank 1 | . . . . . 1 . . . . . Fabricator Hacks 2 | . . . . . . . . . 2 . Build 2 | . . . . . . . . . 2 . Repair Station Hacks 13 | . 2 . 4 . . . . . 7 . Scan Component 6 | . 1 . 2 . . . . . 3 . Repair 6 | . 1 . 2 . . . . . 3 . Refit 1 | . . . . . . . . . 1 . Recycling Unit Hacks 2 | . 1 . 1 . . . . . . . Retrieve Components 2 | . 1 . 1 . . . . . . . Scanalyzer 2 | . . . . . . . 2 . . . Insert Component 1 | . . . . . . . 1 . . . Analyze 1 | . . . . . . . 1 . . . Garrison Access Hacks 1 | . . . . . . . 1 . . . Unlock Access 1 | . . . . . . . 1 . . . Unauthorized Hacks 2 | . 1 . . . . . . . 1 . Terminals 2 | . 1 . . . . . . . 1 . Assimilate 1 | . . . . . . . . . 1 . Botnet 1 | . 1 . . . . . . . . . Fabricators . | . . . . . . . . . . . Repair Stations . | . . . . . . . . . . . Recycling Units . | . . . . . . . . . . . Scanalyzers . | . . . . . . . . . . . Garrison Access . | . . . . . . . . . . . Data Cores Recovered . | . . . . . . . . . . . Used . | . . . . . . . . . . . Hacking Detections 17 | . 8 . 6 . . . 2 . 1 . Full Trace Events 1 | . . . . . . . 1 . . . Feedback Events . | . . . . . . . . . . . Feedback Blocked . | . . . . . . . . . . . Robot Schematics Acquired . | . . . . . . . . . . . Robots Built . | . . . . . . . . . . . Authchips . | . . . . . . . . . . . Time . | . . . . . . . . . . . Total Robot Build Rating . | . . . . . . . . . . . Part Schematics Acquired 1 | . . . . . . . 1 . . . Parts Built 3 | . . . . . . . . . 3 . Authchips . | . . . . . . . . . . . Time 190 | . . . . . . . . . 190 . Total Part Build Rating 15 | . . . . . . . . . 15 . Parts Repaired 6 | . 1 . 2 . . . . . 3 . Time 228 | . 26 . 100 . . . . . 102 . Parts Recycled . | . . . . . . . . . . . Recycled Matter . | . . . . . . . . . . . Retrieved Matter . | . . . . . . . . . . . Retrieved Components 10 | . . . 10 . . . . . . . Parts Scanalyzed 1 | . . . . . . . 1 . . . Part Schematics Acquired 1 | . . . . . . . 1 . . . Parts Damaged . | . . . . . . . . . . . Bothacking | -11 -10 -10 -9 -9 -9 -8 -8 -8 -7 -7 ------------ Run | Scr Mat Min Mat Min Exi Min Mat Gar Fac Low Used RIF Installer 1 | . . . . . . . . 1 . . Robots Hacked . | . . . . . . . . . . . Non-combat . | . . . . . . . . . . . Combat . | . . . . . . . . . . . Robot Hacks Applied . | . . . . . . . . . . . Relay Couplers Released . | . . . . . . . . . . . Fabnet Peak Effective % . | . . . . . . . . . . . Robots Rewired . | . . . . . . . . . . . Allies Hacked . | . . . . . . . . . . . Hacks Repelled . | . . . . . . . . . . . Allies | -11 -10 -10 -9 -9 -9 -8 -8 -8 -7 -7 -------- Run | Scr Mat Min Mat Min Exi Min Mat Gar Fac Low Total Allies 4 | . . . . 4 . . . . . . Largest Group 3 | . . . . 3 . . . . . . Highest-Rated Group 40 | . . . . 40 . . . . . . Highest-Rated Ally 31 | . . . . 31 . . . . . . Total Orders . | . . . . . . . . . . . Ally Attacks 14 | . . . . 14 . . . . . . Total Damage 137 | . . . . 137 . . . . . . Kills 1 | . . . . 1 . . . . . . Allies Corrupted . | . . . . . . . . . . . Allies Melted . | . . . . . . . . . . . Intel | -11 -10 -10 -9 -9 -9 -8 -8 -8 -7 -7 ------- Run | Scr Mat Min Mat Min Exi Min Mat Gar Fac Low Robot Analysis Total 7 | . 3 . 3 . . . 1 . . . Derelict Logs Recovered 3 | . . 1 . 2 . . . . . . Drone Launches . | . . . . . . . . . . . Drone Recoveries . | . . . . . . . . . . . Exploration | -11 -10 -10 -9 -9 -9 -8 -8 -8 -7 -7 ------------- Run | Scr Mat Min Mat Min Exi Min Mat Gar Fac Low Turns Passed 6988 | 44 1099 691 988 756 332 62 609 576 1808 23 Spaces Moved 4555 | 36 789 524 574 585 261 50 229 302 1191 14 Core 2 | 2 . . . . . . . . . . Treads . | . . . . . . . . . . . Legs 265 | . 265 . . . . . . . . . Wheels 4288 | 34 524 524 574 585 261 50 229 302 1191 14 Hover . | . . . . . . . . . . . Flight . | . . . . . . . . . . . Fastest Speed 50 | 50 90 105 105 110 110 110 105 110 100 115 Average Speed 113 | 86 109 105 120 119 110 110 120 120 111 115 Slowest Speed 155 | 95 135 105 145 120 110 110 155 130 120 115 Overloaded Moves . | . . . . . . . . . . . Propulsion Burnouts . | . . . . . . . . . . . Robots Hopped . | . . . . . . . . . . . Cave-ins Triggered . | . . . . . . . . . . . Exploration Rate (%) 47 | 4 98 88 54 99 61 16 12 59 31 5 Regions Visited 10 Branch Regions 5 Pre-discovered Areas 1 | . . . . . 1 . . . . . Known Exits Taken 1 | . . . . . . . 1 . . . Unknown Exits Taken 8 | 1 1 1 1 1 1 1 . . 1 . Scrap Searched 5 | . . 3 . 2 . . . . . . Spaces Dug 19 | . . . 11 . . . . . 8 . Terrain Destroyed 126 | . 24 5 19 15 . 5 . 4 54 . Melee 8 | . . . . . . . . . 8 . Projectile 2 | . . . . . . . . . 2 . AOE 116 | . 24 5 19 15 . 5 . 4 44 . Terrain Rammed . | . . . . . . . . . . . Walls Destroyed . | . . . . . . . . . . . Machines Disabled . | . . . . . . . . . . . Actions | -11 -10 -10 -9 -9 -9 -8 -8 -8 -7 -7 --------- Run | Scr Mat Min Mat Min Exi Min Mat Gar Fac Low Total 5912 | 45 971 614 767 624 309 53 492 470 1551 16 Wait 775 | . 98 42 67 17 42 . 214 75 220 . Move 4544 | 35 788 523 573 584 260 49 228 300 1190 14 Hop . | . . . . . . . . . . . Pick Up 66 | 4 13 13 18 1 1 . 2 1 13 . Fast Attach 52 | 6 18 2 7 . . . 5 1 13 . Attach 20 | . 2 2 8 . . . . 3 5 . Detach 14 | . 8 . 3 . . . . . 3 . Swap 58 | . 7 2 10 6 . 2 2 8 21 . Drop 69 | . 10 4 19 5 6 . 5 2 18 . Fire 250 | . 27 26 62 11 . 2 36 24 60 2 Melee 8 | . . . . . . . . . 8 . Ram . | . . . . . . . . . . . Kick . | . . . . . . . . . . . Crush . | . . . . . . . . . . . Escape Stasis 56 | . . . . . . . . 56 . . Rewire . | . . . . . . . . . . . Trap . | . . . . . . . . . . . Miscellaneous . | . . . . . . . . . . . Route ------- -11/Scrapyard -10/Materials (discovered 4 exits: *Mat x3 / [*Min]) -10/Mines -9/Materials (discovered 2 exits: *Mat / [*Min]) -9/Mines (discovered 3 exits: *Mat x2 / *Exi) -9/Exiles -8/Mines -8/Materials -8/Garrison (discovered 3 exits: *Fac x3) -7/Factory -7/Lower Caves History --------- Turn | Location | Event 21 | -11/Scrapyard | Discovered new exit (range 16) 45 | -11/Scrapyard | Entered Materials 309 | -10/Materials | Build established: Mutant 561 | -10/Materials | Discovered new exit (range 5) 751 | -10/Materials | Discovered new exit (range 10) 805 | -10/Materials | Discovered new exit (range 5) 877 | -10/Materials | Discovered new exit (range 10) 927 | -10/Materials | Repaired Lgt. Armor Plating 1144 | -10/Materials | Entered Mines 1243 | -10/Mines | Assembled infested the area 1248 | -10/Mines | Assisted by a Guerilla fighting off Assembled 1479 | -10/Mines | Core integrity fell below 50% 1526 | -10/Mines | Found a hidden stash of uninstalled traps 1679 | -10/Mines | Learned Materials terminal intel 1787 | -10/Mines | Received a Rocket Launcher from a helpful Derelict 1820 | -10/Mines | Discovered new exit (range 8) 1835 | -10/Mines | Entered Materials 1835 | -9/Materials | Evolved 2 slots: Utility x2 1836 | -9/Materials | Loaded intel: 12 terminal locations 2087 | -9/Materials | Discovered new exit (range 4) 2304 | -9/Materials | Discovered new exit (range 11) 2498 | -9/Materials | Repaired Cmb. Airjet 2552 | -9/Materials | Repaired Cmb. Airjet 2823 | -9/Materials | Entered Mines 2896 | -9/Mines | Discovered new exit (range 6) 2932 | -9/Mines | Assisted by bots powering up and referring to "LRC-V3" 2965 | -9/Mines | Discovered new exit (range 12) 3095 | -9/Mines | Joined a pair of Derelicts in attacking an 0b10 outpost 3278 | -9/Mines | Learned Materials trap positions 3316 | -9/Mines | Received a Mining Laser from a helpful Derelict 3334 | -9/Mines | Deemed a non-threat by the Exiles lab entrance 3435 | -9/Mines | Learned 2 Materials zone layouts 3568 | -9/Mines | Discovered new exit (range 5) 3579 | -9/Mines | Entered Exiles 3605 | -9/Exiles | Met 8R-AWN 3625 | -9/Exiles | Met EX-HEX 3655 | -9/Exiles | Met EX-BIN 3667 | -9/Exiles | Aligned with FarCom system 3669 | -9/Exiles | Given EX-Vault access code 3694 | -9/Exiles | Opened EX-Vault 3703 | -9/Exiles | Found Army-in-a-Box 3726 | -9/Exiles | Warned to stay clear of 0b10 Research branches 3743 | -9/Exiles | Exiles lab attacked by MAIN.C 3763 | -9/Exiles | Learned location of Zion (-6) 3891 | -9/Exiles | Discovered new exit (range 12) 3911 | -9/Exiles | Left Exiles lab with Army-in-a-Box 3911 | -9/Exiles | Entered Mines 3962 | -8/Mines | Discovered new exit (range 10) 3973 | -8/Mines | Entered Materials 3973 | -8/Materials | Evolved 2 slots: Utility x2 3975 | -8/Materials | Loaded intel: 14 trap records 4490 | -8/Materials | Garrison activated, responded to threat 4581 | -8/Materials | Identified exit to Garrison 4582 | -8/Materials | Entered Garrison 4740 | -8/Garrison | Triggered checkpoint 4805 | -8/Garrison | Discovered new exit (range 8) 4925 | -8/Garrison | Discovered new exit (range 12) 4998 | -8/Garrison | Triggered checkpoint 5121 | -8/Garrison | Discovered new exit (range 15) 5144 | -8/Garrison | Installed Relay Interface Framework 5158 | -8/Garrison | Entered Factory 5158 | -7/Factory | Evolved 2 slots: Utility x2 5407 | -7/Factory | Repaired Adv. Weight Redist. System 5413 | -7/Factory | Fabricated Coil Gun? 5441 | -7/Factory | Repaired Arm. Wheel 5474 | -7/Factory | Repaired Shotgun 6487 | -7/Factory | Cargo convoy interrupted 6495 | -7/Factory | Fabricated Adv. Melee Analysis Suite? 6522 | -7/Factory | Lost 3 parts (2n1w) 6527 | -7/Factory | Destroyed 10 combat bots 6960 | -7/Factory | Discovered new exit (range 4) 6966 | -7/Factory | Entered Lower Caves 6989 | -7/Lower Caves | Self-destructed Last Messages --------------- 06872_ K-01 Serf collects debris. 06877_ Acquired 43 matter. 06880_ K-01 Serf collects debris. 06900_ System corrupted: Heat flow error (+218). 06908_ ALERT: Rogue bot located, Programmers report to Factory Zone 4A. 06915_ L1 06980_ S-27 Virus destroyed. 06980_ Switching to secondary target: S-27 Virus. 06980_ Slug penetrates S-27 Virus. 06980_ S-27 Virus destroyed. 06985_ VTOL Module fries itself beyond repair. 06985_ Acquired 16 matter. 06986_ Lgt. Nuclear Core fries itself beyond repair. 06988_ System corrupted: Energy discharge (-86). Map ----- +----------------------------------------------------+ | ????????????????????????????????????????????? | | ????????????????????????????????????????????? | | ????????????????????????????????????????????? | | ????????????????????????????????????????????? | | ????????????????????????????????????????????? | | ????????????????????????????????????????????? | | ????????????????????????????????????????????? | | ????????????????????????????????????????????? | | ????????????????????????????????????????????? | | ????????????????????????????????????????????? | | ????????????????????????????????????????????? | | ????????????????????????????????????????????? | | ????????????????????????????????????????????? | | ????????????????????????????????????????????? | | ????????????????????????????????????????????? | | ????????????????????????????????????????????? | | ????????????????????????????????????????????? | | ????????????????????#???????????????????????? | | ???????????????????## ??????????????????????? | | ??????????????????## ??????????????????????? | | ??????????????????# ?????????????????????? | | ?????????????###### ?????????????????????? | | ?????????????? ????????????????????? | | ????????????????? #???????????????????? | | ????????????????????# ##?????????????????? | | ?????????????????????# @##????????????????? | | ?????????????????????## *#????????????????? | | ??????????????????????####%#????????????????? | | ?????????????????????????#=#????????????????? | | ?????????????????????????# #????????????????? | | ??????????# ???????????# #????????????????? | | ??????????# ######## #????????????????? | | ?????? #????????????????? | | ?????? #????????????????? | | ?????????# ######## #????????????????? | | ?????????# ????????????## #????????????????? | | ???????????????########## ###??????????????? | | ???????# #??????????????? | | ???????????# ######## #??????????????? | | ???????????????????????# #??????????????? | | ???????????????????????# #??????????????? | | ???????????????????????# #??????????????? | | ???????????????????????# #??????????????? | | ???????????????????????# ##??????????????? | | ???????????????????????# # #???????????????? | | ???????????????????????# # #???????????????? | | ??????????????????????? #???????????????? | | ??????????????????????? ##???????????????? | | ??????????????????????? #????????????????? | | ??????????????????????? ????????????????? | +----------------------------------------------------+ Best States ------------- Heat Dissipation 50 Energy Generation 18 Energy Capacity 310 Matter Stores 300 Matter Capacity 300 Sight Range 20 Terrain Scan Density 10 Additional Mass Support 9 Armor Coverage 225 Propulsion Shielding 33 Weapon Shielding 33 Evasion (%) 55 Targeting Accuracy 26 Recoil Reduction 1 Energy Filtering 30 Item Schematics ----------------- Arm. Wheel | -8/Materials | Scanalyzed Robot Schematics ------------------ None Fabricated ------------ Coil Gun | x2 | -7/Factory | Preloaded Adv. Melee Analysis Suite | x1 | -7/Factory | Preloaded Alien Tech Used ----------------- None Achievements -------------- None Challenges ------------ None Game ------ Seed DroneGatlingShotgun Manual? 0 Play Time 01:11:18 Cumulative 149.3 hours Start 2022.06.07 @ 08:39:58 End 2022.06.07 @ 15:26:34 Sessions 5 Manual Loads 0 Difficulty Rogue Special Mode None Game No. 129 Rogue 129 Adventurer 0 Explorer 0 Win Type - Total 3 Types 3/0/0/0/0/0/0/0/0 Lore% 61 Gallery% 65 Achievement% 55 Wizard Run 0 Options --------- ASCII 1 Keyboard 1 Movement Vi Keybinds 0 Fullscreen 1 Font 18/TerminusBold Map View 76x50 Tactical HUD 1 Map Filters NONE Filters NONE Steam 1 RUN: 77c99da4-b8d0-4167-ac13-c36e466f568a